fUST/lending_fUST_20260113
["ID","MTS","AMOUNT","RATE_DAILY","PERIOD"]
[401582361,1768309215666,321.59,7.9e-05,2]
[401582362,1768309215950,205.3,8e-05,2]
[401582363,1768309215977,116.29,8e-05,2]
[401582364,1768309216233,321.59,8.1e-05,2]
[401582365,1768309216522,321.59,8.2e-05,2]
[401582366,1768309216835,321.59,8.3e-05,2]
[401582367,1768309217264,321.59,8.4e-05,2]
[401582368,1768309217420,321.59,8.6e-05,2]
[401582369,1768309217728,321.59,8.7e-05,2]
[401582370,1768309218034,321.59,8.8e-05,2]
[401582371,1768309218319,321.59,8.9e-05,2]
[401582372,1768309218673,321.59,9e-05,2]
[401582373,1768309218979,321.59,9.1e-05,2]
[401582374,1768309219275,321.59,9.2e-05,2]
[401582375,1768309221788,-133.92441243,0.00011123,2]
[401582376,1768309221816,-41.88760297,0.00011124,2]
[401582377,1768309224426,321.59,9.4e-05,2]
[401582378,1768309224771,-197.98311419,0.00011124,2]
[401582379,1768309224818,321.59,9.5e-05,2]
[401582380,1768309225141,321.59,9.6e-05,2]
[401582381,1768309225480,321.59,9.7e-05,2]
[401582382,1768309225788,321.59,9.8e-05,2]
[401582383,1768309226087,321.59,9.9e-05,2]
[401582384,1768309226385,321.59,0.0001,2]
[401582385,1768309226656,321.59,0.000102,2]
[401582386,1768309226950,321.59,0.000103,2]
[401582387,1768309227311,321.59,0.000104,2]
[401582388,1768309227785,321.59,0.000105,2]
[401582389,1768309232303,-208.23196804,0.00011124,2]
[401582390,1768309237896,-231.87954565,0.00011124,2]
[401582391,1768309240046,-240.27105052,0.00011124,2]
[401582392,1768309246945,-284.66777357,0.00011124,2]
[401582393,1768309250134,-222.90332121,0.00011124,2]
[401582394,1768309253923,-156.89941992,0.00011124,2]
[401582395,1768309256656,157.0,8.3e-07,2]
[401582396,1768309256736,-284.67294533,0.00011124,2]
[401582397,1768309260298,386.95,6.215e-05,2]
[401582398,1768309260702,773.9,6.78e-05,2]
[401582399,1768309261103,1160.86,7.345e-05,2]
[401582400,1768309261583,330.03,7.91e-05,2]
[401582401,1768309261610,1217.78,7.91e-05,2]
[401582402,1768309262341,1934.76,8.475e-05,2]
[401582403,1768309262748,2321.71,9.04e-05,2]
[401582404,1768309263149,2708.66,9.605e-05,2]
[401582405,1768309263559,1817.1,0.0001017,2]
[401582406,1768309263584,1278.51,0.0001017,2]
[401582407,1768309265897,-206.62191573,0.00010735,2]
[401582408,1768309269136,-203.20803785,0.00010735,2]
[401582409,1768309270531,-162.20195573,0.00010735,2]
[401582410,1768309272033,-268.44803052,0.00010735,2]
[401582411,1768309279709,-212.33809476,0.00010735,2]
[401582412,1768309284683,-2429.75196541,0.00010735,2]
[401582413,1768309284711,-291.32705467,0.00011124,2]
[401582414,1768309284739,-178.3233691,0.00011185,2]
[401582415,1768309284768,-331.68522164,0.000113,2]
[401582416,1768309284923,-164.46405627,0.000113,2]
[401582417,1768309284956,-3373.37072209,0.000113,2]
[401582418,1768309284984,-300.0,0.00012899,2]
[401582419,1768309285012,-300.0,0.00012899,2]
[401582420,1768309285040,-300.0,0.00012899,2]
[401582421,1768309285211,-1997.23812728,0.000129,2]
[401582422,1768309285242,-210.42157554,0.00013185,2]
[401582423,1768309285271,-692.77822526,0.00013895,2]
[401582424,1768309285302,-4199.13414384,0.00013895,2]
[401582425,1768309285785,-3803.94661531,0.00015185,2]
[401582426,1768309285814,-242.51978198,0.00015185,2]
[401582427,1768309333929,1907.07720542,0.00012483,2]
[401582428,1768309333952,22.51884898,0.00012483,2]
[401582429,1768309334114,1929.5960544,0.0001414,2]
[401582430,1768309336968,232.17,6.985e-05,2]
[401582431,1768309337446,348.26,7.568e-05,2]
[401582432,1768309337852,464.34,8.15e-05,2]
[401582433,1768309338295,580.43,8.732e-05,2]
[401582434,1768309338866,696.51,9.314e-05,2]
[401582435,1768309339308,812.6,9.896e-05,2]
[401582436,1768309339700,928.68,0.00010478,2]
[401582437,1768309340103,1044.77,0.0001106,2]
[401582438,1768309340521,1160.86,0.00011642,2]
[401582439,1768309385919,500.0,0.00013273,2]
[401582440,1768309385953,1000.0,0.00013821,2]
[401582441,1768309386015,279.27509662,0.00014368,2]
[401582442,1768309386037,902.09581521,0.00014368,2]
[401582443,1768309396090,500.0,0.00013273,2]
[401582444,1768309396255,1000.0,0.00013821,2]
[401582445,1768309397176,1000.0,0.00013821,2]
[401582446,1768309397229,500.0,0.00013273,2]
[401582447,1768309397261,500.0,0.00013273,2]
[401582448,1768309397289,1000.0,0.00013821,2]
[401582449,1768309397679,500.0,0.00013273,2]
[401582450,1768309397727,501.55589025,0.00013821,2]
[401582451,1768309399290,500.0,0.00013699,2]
[401582452,1768309413468,181.52,8.5e-05,2]
[401582453,1768309414482,217.82,9.067e-05,2]
[401582454,1768309414899,254.12,9.633e-05,2]
[401582455,1768309415316,290.43,0.000102,2]
[401582456,1768309415820,326.73,0.00010766,2]
[401582457,1768309416315,363.03,0.00011333,2]
[401582458,1768309451173,-1493.74121921,0.00017085,12]
[401582459,1768309477486,-1493.74121921,0.00018373,16]
[401582461,1768309504359,500.0,0.00013699,2]
[401582462,1768309504416,322.6303654,0.00014247,2]
[401582463,1768309506957,-1929.5960544,0.00015798,2]
[401582464,1768309506982,-300.0,0.00016017,2]
[401582465,1768309628808,308.40609686,0.00030136,120]
[401582466,1768309680050,370.59,9.99e-05,2]
[401582467,1768309680318,370.59,9.99e-05,2]
[401582468,1768309680586,370.58,9.99e-05,2]
[401582473,1768309803433,163.9,5e-05,2]
[401582474,1768309805373,163.89,5e-05,2]
[401582546,1768309838207,-36593.21285261,0.00016077,2]
[401582549,1768309838216,-655.0,0.00016177,2]
[401582552,1768309838226,-194.32804132,0.00016177,2]
[401582555,1768309838235,-200.0,0.00016438,2]
[401582558,1768309838245,-1747.58336137,0.00016658,2]
[401582560,1768309838255,-169.07956,0.00016758,2]
[401582561,1768309838264,-178.898,0.00017185,2]
[401582562,1768309838273,-178.25346145,0.00017185,2]
[401582563,1768309838282,-1929.5960544,0.00017455,2]
[401582565,1768309838291,-400.0,0.00017534,2]
[401582567,1768309838301,-229.30708876,0.00018177,2]
[401582568,1768309838310,-728.0,0.0001822,2]
[401582570,1768309838320,-300.0,0.00018278,2]
[401582571,1768309838329,-26461.05205915,0.00018279,3]
[401582572,1768309838339,-728.0,0.0001835,2]
[401582573,1768309838348,-728.0,0.0001835,2]
[401582574,1768309838357,-728.0,0.0001835,2]
[401582575,1768309838367,-1041.66666667,0.00018386,2]
[401582576,1768309838376,-2594.12,0.00018479,2]
[401582577,1768309838386,-4134.0,0.000185,2]
[401582578,1768309838396,-168.0,0.00018531,2]
[401582579,1768309838406,-728.0,0.0001854,2]
[401582580,1768309838415,-1367.0,0.00018541,2]
[401582581,1768309838424,-629.0,0.00018541,2]
[401582582,1768309838434,-349.52413469,0.00018568,2]
[401582583,1768309838444,-1611.62,0.00018569,3]
[401582584,1768309838453,-805.81,0.00018569,3]
[401582585,1768309838462,-402.91,0.00018569,3]
[401582586,1768309838471,-201.45,0.00018569,3]
[401582587,1768309838480,-604.4,0.00018569,3]
[401582588,1768309838489,-281.88107313,0.00018576,2]
[401582589,1768309838498,-500.0,0.00018576,2]
[401582590,1768309838508,-500.0,0.00018576,2]
[401582591,1768309838517,-500.0,0.00018576,2]
[401582592,1768309838530,-500.0,0.00018576,2]
[401582593,1768309838540,-500.0,0.00018576,2]
[401582594,1768309838550,-500.0,0.00018576,2]
[401582595,1768309838560,-500.0,0.00018576,2]
[401582596,1768309838571,-500.0,0.00018576,2]
[401582597,1768309838581,-557.09689384,0.00018576,2]
[401582598,1768309838592,-500.0,0.00018576,2]
[401582599,1768309838601,-500.0,0.00018576,2]
[401582600,1768309838614,-500.0,0.00018576,2]
[401582601,1768309838623,-500.0,0.00018576,2]
[401582602,1768309838632,-562.17754428,0.00018576,2]
[401582603,1768309838641,-500.0,0.00018576,2]
[401582604,1768309838651,-500.0,0.00018576,2]
[401582605,1768309838660,-500.0,0.00018576,2]
[401582606,1768309838670,-500.0,0.00018576,2]
[401582607,1768309838681,-500.0,0.00018576,2]
[401582608,1768309838690,-168.00134361,0.00018576,2]
[401582609,1768309838700,-600.0,0.00018578,2]
[401582610,1768309838711,-1000000.0,0.00018579,2]
[401582611,1768309838721,-509.24051281,0.00018579,2]
[401582612,1768309838731,-13230.52,0.00018579,3]
[401582613,1768309838741,-600.0,0.00018644,2]
[401582614,1768309838751,-728.0,0.0001867,2]
[401582615,1768309838760,-150.17,0.00018879,2]
[401582616,1768309838769,-150.14,0.00018879,2]
[401582617,1768309838779,-150.176,0.00018879,2]
[401582618,1768309838788,-728.0,0.000189,2]
[401582619,1768309838797,-2147.0,0.00018947,2]
[401582620,1768309838806,-160.0,0.0001899,2]
[401582621,1768309838815,-728.0,0.0001899,2]
[401582622,1768309838824,-728.0,0.0001899,2]
[401582623,1768309838833,-715.0,0.0001903,2]
[401582624,1768309838842,-197.738,0.0001903,2]
[401582625,1768309838851,-417.0,0.0001903,2]
[401582626,1768309838860,-160.0,0.00019173,2]
[401582627,1768309838869,-728.0,0.00019173,2]
[401582628,1768309838878,-728.0,0.0001918,2]
[401582629,1768309838887,-168.0,0.00019187,2]
[401582630,1768309838896,-157.98,0.000192,2]
[401582631,1768309838906,-161.93,0.000192,2]
[401582632,1768309838914,-1302.0,0.000192,2]
[401582633,1768309838924,-7196.97,0.000192,2]
[401582634,1768309838934,-167.82,0.000192,2]
[401582635,1768309838943,-728.0,0.00019298,2]
[401582636,1768309838952,-728.0,0.0001931,2]
[401582637,1768309838961,-168.0,0.00019366,2]
[401582638,1768309838970,-1747.58336134,0.0001944,2]
[401582639,1768309838979,-728.0,0.0001954,2]
[401582640,1768309838989,-727.94438686,0.000196,2]
[401582641,1768309838998,-728.0,0.00019615,2]
[401582642,1768309839008,-728.0,0.0001963,2]
[401582643,1768309839017,-728.0,0.0001963,2]
[401582644,1768309839026,-728.0,0.00019803,2]
[401582645,1768309839035,-728.0,0.00019803,2]
[401582646,1768309839045,-168.0,0.00019833,2]
[401582647,1768309839054,-728.0,0.00019937,2]
[401582648,1768309839064,-420.0,0.00019938,2]
[401582649,1768309839074,-3223.24,0.00019939,3]
[401582650,1768309839083,-1611.62,0.00019939,3]
[401582651,1768309839092,-805.82,0.00019939,3]
[401582652,1768309839102,-402.9,0.00019939,3]
[401582653,1768309839111,-264.2861362,0.00020177,2]
[401582654,1768309839121,-168.0,0.0002018,2]
[401582655,1768309839131,-168.0,0.00020229,2]
[401582656,1768309839143,-720.0,0.00020508,2]
[401582657,1768309839153,-159.0,0.0002074,3]
[401582658,1768309839162,-1367.0,0.00021541,2]
[401582659,1768309839171,-629.0,0.00021541,2]
[401582660,1768309839180,-587.0,0.00021748,2]
[401582661,1768309839190,-2147.0,0.00021947,2]
[401582662,1768309839199,-159.63,0.00022,7]
[401582663,1768309839208,-715.0,0.0002203,2]
[401582664,1768309839217,-178.0,0.0002203,2]
[401582665,1768309839227,-417.0,0.0002203,2]
[401582666,1768309839236,-259.17537596,0.00022072,2]
[401582667,1768309839245,-299.26518363,0.00022177,2]
[401582668,1768309839254,-1747.58336134,0.00022221,2]
[401582669,1768309839263,-2000.0,0.00022524,7]
[401582670,1768309839273,-864.0,0.00022559,10]
[401582671,1768309839282,-1222.19113968,0.00022607,2]
[401582672,1768309839292,-461.67526834,0.00022607,2]
[401582673,1768309839302,-168.3888056,0.00022607,2]
[401582674,1768309839311,-181.08010149,0.00022607,2]
[401582675,1768309839320,-151.0,0.00022607,2]
[401582676,1768309839329,-174.61919141,0.00022607,2]
[401582677,1768309839339,-151.0,0.00022607,2]
[401582678,1768309839348,-181.08010149,0.00022607,2]
[401582679,1768309839356,-151.0,0.00022607,2]
[401582680,1768309839366,-187.78006525,0.00022607,2]
[401582681,1768309839375,-151.0,0.00022607,2]
[401582682,1768309839385,-194.72792766,0.00022607,2]
[401582683,1768309839394,-151.0,0.00022607,2]
[401582684,1768309839404,-201.93286099,0.00022607,2]
[401582685,1768309839413,-151.0,0.00022607,2]
[401582686,1768309839422,-209.40437684,0.00022607,2]
[401582687,1768309839431,-151.0,0.00022607,2]
[401582688,1768309839441,-217.15233878,0.00022607,2]
[401582689,1768309839451,-151.0,0.00022607,2]
[401582690,1768309839460,-2230.315306,0.00022607,2]
[401582691,1768309839469,-225.18697532,0.00022607,2]
[401582692,1768309839478,-250.0,0.00022607,2]
[401582693,1768309839487,-151.0,0.00022607,2]
[401582694,1768309839497,-380.99585983,0.00022607,2]
[401582695,1768309839507,-151.0,0.00022607,2]
[401582696,1768309839516,-233.51889341,0.00022607,2]
[401582697,1768309839530,-187.96041165,0.00022607,2]
[401582698,1768309839540,-242.15909246,0.00022607,2]
[401582699,1768309839549,-251.11897888,0.00022607,2]
[401582700,1768309839558,-260.4103811,0.00022607,2]
[401582701,1768309839568,-270.0455652,0.00022607,2]
[401582702,1768309839578,-280.03725112,0.00022607,2]
[401582703,1768309839587,-290.39862941,0.00022607,2]
[401582704,1768309839596,-301.1433787,0.00022607,2]
[401582705,1768309839606,-478.75725327,0.00023155,2]
[401582706,1768309839615,-2312.83697232,0.00023155,2]
[401582707,1768309839624,-496.47127164,0.00023703,2]
[401582708,1768309839633,-2398.4119403,0.00023703,2]
[401582709,1768309839643,-743.0,0.00023723,2]
[401582711,1768309839652,-976.0,0.000241,2]
[401582712,1768309839661,-334.24423107,0.00024177,2]
[401582714,1768309839670,-514.84070869,0.00024251,2]
[401582715,1768309839679,-2487.15318209,0.00024251,2]
[401582716,1768309839688,-1367.0,0.00024541,2]
[401582717,1768309839697,-629.0,0.00024541,2]
[401582718,1768309839706,-13230.52,0.000246,3]
[401582719,1768309839715,-13230.52,0.00024703,3]
[401582720,1768309839723,-533.88981491,0.00024799,2]
[401582721,1768309839732,-1883.92974033,0.00024799,2]
[401582722,1768309839742,-1000.0,0.00024815,10]
[401582723,1768309839750,-458089.42063247,0.00024889,2]
[401582724,1768309839760,-206.67839926,0.000249,3]
[401582725,1768309839769,-152.0,0.000249,3]
[401582726,1768309839778,-152.0,0.000249,3]
[401582727,1768309839786,-152.0,0.000249,3]
[401582728,1768309839795,-152.0,0.000249,3]
[401582729,1768309839805,-152.0,0.000249,3]
[401582730,1768309839815,-152.0,0.000249,3]
[401582733,1768309839824,-152.0,0.000249,3]
[401582734,1768309839834,-152.0,0.000249,3]
[401582735,1768309839844,-284.0,0.000249,3]
[401582736,1768309839853,-11951.94694112,0.000249,2]
[401582737,1768309839866,-7633.01181611,0.000249,2]
[401582739,1768309839877,-6223.0306477,0.000249,2]
[401582857,1768309841140,-3e-08,0.000249,2]
[401582860,1768309841155,-276.63018444,0.000249,2]
[401582862,1768309841166,-350.0842972,0.000249,2]
[401582864,1768309841178,-59118.13800153,0.000249,2]
[401583279,1768309845316,-8121.94097125,0.000249,2]
[401583377,1768309846227,-5756.26328816,0.000249,2]
[401583405,1768309846609,-30805.50142645,0.000249,2]
[401583489,1768309847519,-1112.74709886,0.000249,2]
[401585186,1768309865723,500.0,0.00013699,2]
[401590573,1768310043824,381.99831871,0.00013273,2]
[401590574,1768310063542,500.0,0.00030136,120]
[401590575,1768310063824,500.0,0.00030136,120]
[401590576,1768310064382,500.0,0.00030136,120]
[401590577,1768310064622,500.0,0.00030136,120]
[401590578,1768310064855,500.0,0.00030136,120]
[401590579,1768310065120,500.0,0.00030136,120]
[401590580,1768310065356,500.0,0.00030136,120]
[401590581,1768310065624,500.0,0.00030136,120]
[401590582,1768310065864,500.0,0.00030136,120]
[401590583,1768310066239,500.0,0.00030136,120]
[401590584,1768310066474,500.0,0.00030136,120]
[401590585,1768310066702,500.0,0.00030136,120]
[401590586,1768310066944,500.0,0.00030136,120]
[401590587,1768310067186,269.75330622,0.00030136,120]
[401590588,1768310071837,500.0,0.00013698,2]
[401590589,1768310072130,500.0,0.00013698,2]
[401590590,1768310072389,402.14831967,0.00013698,2]
[401590592,1768310103522,158.55298923,0.00013273,2]
[401590593,1768310219905,10000.01,0.0001509,2]
[401590594,1768310219927,10000.01,0.0001509,2]
[401590595,1768310219948,10000.01,0.0001509,2]
[401590596,1768310219970,6778.8596462,0.0001509,2]
[401590597,1768310282313,183.54,7.919e-05,2]
[401590598,1768310282721,229.42,8.485e-05,2]
[401590599,1768310283197,275.31,9.05e-05,2]
[401590600,1768310283601,321.19,9.616e-05,2]
[401590601,1768310284002,367.08,0.00010182,2]
[401590602,1768310284420,412.96,0.00010747,2]
[401590603,1768310284841,458.85,0.00011313,2]
[401590604,1768310353824,155.42,0.00010754,2]
[401590606,1768310403429,237.63,5e-05,2]
[401590607,1768310403876,237.63,5.2e-05,2]
[401590608,1768310404315,237.63,5.4e-05,2]
[401590609,1768310404831,104.4903538,5.6e-05,2]
[401590610,1768310404856,133.1396462,5.6e-05,2]
[401590611,1768310405355,237.63,5.8e-05,2]
[401590612,1768310405857,237.63,6e-05,2]
[401590613,1768310406370,237.63,6.2e-05,2]
[401590614,1768310406880,237.63,6.4e-05,2]
[401590615,1768310407316,237.63,6.6e-05,2]
[401590616,1768310407778,237.63,6.8e-05,2]
[401590617,1768310408275,237.63,7e-05,2]
[401590618,1768310408788,237.63,7.2e-05,2]
[401590619,1768310409363,237.63,7.4e-05,2]
[401590620,1768310409874,237.63,7.6e-05,2]
[401590621,1768310410391,237.63,7.8e-05,2]
[401590622,1768310410904,237.63,8e-05,2]
[401590623,1768310411424,237.63,8.2e-05,2]
[401590624,1768310411970,237.63,8.4e-05,2]
[401590625,1768310412494,237.63,8.6e-05,2]
[401590626,1768310412980,237.63,8.8e-05,2]
[401590627,1768310413425,237.63,9e-05,2]
[401590628,1768310413910,237.63,9.2e-05,2]
[401590629,1768310414343,237.63,9.4e-05,2]
[401590630,1768310414874,237.63,9.6e-05,2]
[401590631,1768310415299,237.63,9.8e-05,2]
[401590632,1768310416449,237.63,0.0001,2]
[401590633,1768310416825,237.63,0.000102,2]
[401590634,1768310417315,237.63,0.000104,2]
[401590635,1768310417749,237.63,0.000106,2]
[401590636,1768310418201,237.63,0.000108,2]
[401590637,1768310418610,237.63,0.00011,2]
[401590638,1768310419032,237.63,0.000112,2]
[401590639,1768310419539,237.63,0.000114,2]
[401590640,1768310419962,237.63,0.000116,2]
[401590641,1768310420418,237.63,0.000118,2]
[401590642,1768310421041,237.63,0.00012,2]
[401590643,1768310421492,237.63,0.000122,2]
[401590644,1768310421941,237.63,0.000124,2]
[401590645,1768310422439,237.63,0.000126,2]
[401590646,1768310422906,237.63,0.000128,2]
[401590647,1768310423377,237.63,0.00013,2]
[401590648,1768310423843,237.63,0.000132,2]
[401590649,1768310424381,237.63,0.000134,2]
[401590650,1768310424712,237.63,0.000136,2]
[401590651,1768310425210,237.63,0.000138,2]
[401590652,1768310425627,124.0403538,0.00014,2]
[401590653,1768310425653,113.5896462,0.00014,2]
[401590654,1768310426075,237.63,0.000142,2]
[401590655,1768310426500,237.63,0.000144,2]
[401590656,1768310426962,237.63,0.000146,2]
[401590657,1768310427394,237.63,0.000148,2]
[401590658,1768310488225,168.46,0.00013724,2]
[401590659,1768310634244,249.86409292,0.00030136,120]
[401590660,1768310652544,500.0,0.00030136,120]
[401590661,1768310652656,242.4292679,0.00030136,120]
[401590663,1768310689014,884.892113,0.00015031,2]
[401590665,1768310799407,9115.117887,0.00015029,2]
[401590666,1768310799430,8779.0863158,0.00015029,2]
[401590667,1768310815964,-178.898,0.00015715,2]
[401590668,1768310835533,1000.0,0.00015715,2]
[401590669,1768310886727,153.3,9.858e-05,2]
[401590670,1768310887119,175.2,0.00010438,2]
[401590671,1768310888056,197.1,0.00011018,2]
[401590672,1768310888482,219.0,0.00011598,2]
[401590676,1768311002354,155.0,0.0001,2]
[401590677,1768311003612,381.99831871,0.00013273,2]
[401590678,1768311005312,647.0,0.00015715,2]
[401591030,1768311038541,-210.96041541,0.00015715,2]
[401591031,1768311038552,-178.25346145,0.00015715,2]
[401591032,1768311038562,-1747.58336137,0.00015935,2]
[401591034,1768311038579,-300.0,0.00015935,2]
[401591035,1768311038593,-1000000.0,0.00015936,2]
[401591037,1768311038604,-1041.66666667,0.00016022,2]
[401591039,1768311038618,-1666.06,0.00016026,3]
[401591040,1768311038629,-833.03,0.00016026,3]
[401591041,1768311038639,-416.51,0.00016026,3]
[401591042,1768311038650,-208.26,0.00016026,3]
[401591043,1768311038660,-624.8,0.00016026,3]
[401591044,1768311038670,-509.24051281,0.00016035,2]
[401591045,1768311038683,-281.88107313,0.00016035,2]
[401591047,1768311038694,-500.0,0.00016035,2]
[401591048,1768311038705,-168.00134361,0.00016035,2]
[401591049,1768311038716,-500.0,0.00016035,2]
[401591050,1768311038727,-500.0,0.00016035,2]
[401591051,1768311038738,-500.0,0.00016035,2]
[401591052,1768311038748,-500.0,0.00016035,2]
[401591053,1768311038760,-500.0,0.00016035,2]
[401591054,1768311038771,-500.0,0.00016035,2]
[401591055,1768311038787,-600.0,0.00016035,2]
[401591056,1768311038798,-268.97381493,0.00016035,2]
[401591057,1768311038809,-500.0,0.00016035,2]
[401591058,1768311038822,-500.0,0.00016035,2]
[401591059,1768311038832,-400.41264022,0.00016035,2]
[401591060,1768311038842,-500.0,0.00016035,2]
[401591061,1768311038853,-418.39543066,0.00016035,2]
[401591062,1768311038869,-252.83611793,0.00016035,2]
[401591063,1768311038880,-500.0,0.00016035,2]
[401591064,1768311038896,-500.0,0.00016035,2]
[401591065,1768311038909,-500.0,0.00016035,2]
[401591066,1768311038920,-500.0,0.00016035,2]
[401591067,1768311038931,-500.0,0.00016035,2]
[401591068,1768311038945,-500.0,0.00016035,2]
[401591069,1768311038958,-290.75899999,0.00016035,2]
[401591070,1768311038970,-500.0,0.00016035,2]
[401591071,1768311038981,-500.0,0.00016035,2]
[401591072,1768311038994,-500.0,0.00016035,2]
[401591073,1768311039015,-500.0,0.00016035,2]
[401591074,1768311039026,-500.0,0.00016035,2]
[401591075,1768311039040,-500.0,0.00016035,2]
[401591076,1768311039051,-500.0,0.00016035,2]
[401591077,1768311039062,-412.0535872,0.00016035,2]
[401591078,1768311039074,-500.0,0.00016035,2]
[401591079,1768311039084,-500.0,0.00016035,2]
[401591080,1768311039095,-500.0,0.00016035,2]
[401591081,1768311039114,-500.0,0.00016035,2]
[401591082,1768311039125,-500.0,0.00016035,2]
[401591083,1768311039135,-500.0,0.00016035,2]
[401591084,1768311039145,-500.0,0.00016035,2]
[401591085,1768311039155,-500.0,0.00016035,2]
[401591086,1768311039165,-500.0,0.00016035,2]
[401591087,1768311039175,-390.38964637,0.00016035,2]
[401591088,1768311039184,-500.0,0.00016035,2]
[401591089,1768311039203,-500.0,0.00016035,2]
[401591090,1768311039218,-500.0,0.00016035,2]
[401591091,1768311039229,-500.0,0.00016035,2]
[401591092,1768311039240,-500.0,0.00016035,2]
[401591093,1768311039251,-500.0,0.00016035,2]
[401591094,1768311039262,-500.0,0.00016035,2]
[401591095,1768311039272,-500.0,0.00016035,2]
[401591096,1768311039283,-500.0,0.00016035,2]
[401591097,1768311039294,-300.0,0.00016035,2]
[401591098,1768311039304,-500.0,0.00016035,2]
[401591099,1768311039316,-500.0,0.00016035,2]
[401591100,1768311039327,-500.0,0.00016035,2]
[401591101,1768311039338,-500.0,0.00016035,2]
[401591102,1768311039349,-500.0,0.00016035,2]
[401591103,1768311039359,-500.0,0.00016035,2]
[401591104,1768311039371,-500.0,0.00016035,2]
[401591105,1768311039381,-500.0,0.00016035,2]
[401591106,1768311039391,-500.0,0.00016035,2]
[401591107,1768311039401,-500.0,0.00016035,2]
[401591108,1768311039411,-500.0,0.00016035,2]
[401591109,1768311039422,-500.0,0.00016035,2]
[401591110,1768311039431,-500.0,0.00016035,2]
[401591111,1768311039441,-500.0,0.00016035,2]
[401591112,1768311039451,-500.0,0.00016035,2]
[401591113,1768311039461,-500.0,0.00016035,2]
[401591114,1768311039472,-500.0,0.00016035,2]
[401591115,1768311039483,-500.0,0.00016035,2]
[401591116,1768311039493,-500.0,0.00016035,2]
[401591117,1768311039503,-500.0,0.00016035,2]
[401591118,1768311039513,-500.0,0.00016035,2]
[401591119,1768311039524,-500.0,0.00016035,2]
[401591120,1768311039535,-500.0,0.00016035,2]
[401591121,1768311039546,-500.0,0.00016035,2]
[401591122,1768311039557,-534.27727798,0.00016035,2]
[401591123,1768311039568,-500.0,0.00016035,2]
[401591124,1768311039578,-500.0,0.00016035,2]
[401591125,1768311039588,-500.0,0.00016035,2]
[401591126,1768311039599,-500.0,0.00016035,2]
[401591127,1768311039610,-500.0,0.00016035,2]
[401591128,1768311039622,-300.0,0.00016356,2]
[401591129,1768311039632,-300.0,0.00016356,2]
[401591130,1768311039642,-300.0,0.00016356,2]
[401591131,1768311039652,-300.0,0.00016356,2]
[401591132,1768311039662,-300.0,0.00016356,2]
[401591133,1768311039672,-300.0,0.00016356,2]
[401591134,1768311039682,-300.0,0.00016356,2]
[401591135,1768311039691,-300.0,0.00016356,2]
[401591136,1768311039701,-300.0,0.00016356,2]
[401591137,1768311039711,-300.0,0.00016356,2]
[401591138,1768311039721,-200.0,0.00016438,2]
[401591139,1768311039730,-3332.12,0.00017396,3]